Cogmind - Beta 17 @@@ ROGUE MODE // 2026.07.08 @ 20:28:27 Player: woegarden Result: Destroyed by L-31 Rogue with Katana Performance ------------- Evolutions (1) 500 Regions Visited (2) 400 Robots Destroyed (16) 80 Value Destroyed (251) 251 Prototype IDs (1) 20 Alien Tech Used (0) 0 Bonus (0) 0 TOTAL SCORE: 1251 Bonus ------- None Cogmind --------- Core Integrity 0/400 Matter 211/300 Energy 18/100 System Corruption 0% Temperature Cool (0) Movement Core (50) Location -9/Materials Parts ------- > --- POWER (1) -------- (None) > --- PROPULSION (2) --- (None) > --- UTILITY (4) ------ Advanced Weight Redist. System Advanced Weight Redist. System Visual Processing Unit > --- WEAPON (2) ------- (None) > --- INVENTORY (5) ---- Wheel High-capacity Battery (250) High-capacity Matter Pod (200) Visual Processing Unit Welding Torch Peak State ------------ > --- POWER ------------ Improved Ion Engine > --- PROPULSION ------- Compact Wheel Improved Flight Unit > --- UTILITY ---------- Medium Storage Unit Improved Terrain Scanner ECM Suite ECM Suite > --- WEAPON ----------- Light Assault Rifle > --- INVENTORY -------- Improved Ion Engine Wheel Wheel Hover Unit Hover Unit High-capacity Battery High-capacity Matter Pod Visual Processing Unit Light Assault Rifle Welding Torch [Rating: 14] Favorites ----------- Power Light Ion Engine Engine Light Ion Engine Propulsion Wheel Leg Aluminum Leg Wheel Wheel Hover Unit Hover Unit Flight Unit Improved Flight Unit Utility ECM Suite Device ECM Suite Storage Medium Storage Unit Processor Visual Processing Unit Weapon Light Assault Rifle Energy Gun Medium Laser Ballistic Gun Light Assault Rifle Build | -11 -10 -9 ------- Run | Yrd Mat Mat Slots Evolved 2 | . . 2 Power . | . . . Propulsion . | . . . Utility 2 | . . 2 Weapon . | . . . Parts Attached 29 | 8 7 14 Power 5 | 1 2 2 Engine 5 | 1 2 2 Core . | . . . Reactor . | . . . Propulsion 13 | 5 2 6 Treads . | . . . Leg . | . . . Wheel 7 | 5 2 . Hover 5 | . . 5 Flight 1 | . . 1 Utility 9 | 2 2 5 Device 6 | 2 1 3 Storage 2 | . 1 1 Processor 1 | . . 1 Hackware . | . . . Protection . | . . . Artifact . | . . . Weapon 2 | . 1 1 Energy Gun 1 | . 1 . Energy Cannon . | . . . Ballistic Gun 1 | . . 1 Ballistic Cannon . | . . . Launcher . | . . . Special Weapon . | . . . Impact Weapon . | . . . Slashing Weapon . | . . . Piercing Weapon . | . . . Special Melee Weapon . | . . . Unidentified Prototypes 1 | . . 1 Parts Lost 18 | . 2 16 Power 3 | . 1 2 Propulsion 8 | . . 8 Utility 4 | . 1 3 Weapon 3 | . . 3 Highest Loss Streak 6 | . 1 6 To Critical Strikes . | . . . Average Backups 8 | 6 8 8 Power . | 1 . . Propulsion 4 | 3 4 3 Utility 2 | . 2 2 Weapon . | 1 1 . Tool/Special . | . . . Unused Backups 19 | 10 3 6 Power 1 | 1 . . Propulsion 8 | 6 1 1 Utility 5 | 1 1 3 Weapon 4 | 2 1 1 Tool/Special 1 | . . 1 Average Slot Usage (%) 85 | . 97 70 Engine 12 | . 13 10 Wheel 18 | . 28 8 Hover 2 | . . 4 Device 17 | . 12 24 Storage 11 | . 14 8 Processor 2 | . . 5 Energy Gun 8 | . 14 1 Ballistic Gun 10 | . 14 6 Peak Build Rating 14 | 10 10 14 Average Rating 9 | 9 9 9 On Entrance 8 | 6 10 9 Avg Prop Armor Cover (%) 5 | . . 5 Naked Turns . | . . . Heaviest Build 24 | 14 21 24 Greatest Support 32 | 20 32 32 Greatest Overweight (x) 6 | 1 . 6 Average Overweight (x) . | . . . Largest Inventory Capacity 10 | 8 10 10 Average Capacity 9 | 8 9 8 Most Carried 10 | 8 10 10 Average Carried 8 | 6 8 8 Final Capacity 10 | 8 10 5 Final Carried 10 | 8 10 5 Class Distribution -------------------- 60% | Scavenger-Mutant 39% | Mutant Dominant Class ---------------- Scavenger-Mutant | -10/Materials Mutant | -9/Materials Resources | -11 -10 -9 ----------- Run | Yrd Mat Mat Matter Collected 649 | 337 256 56 Remotely . | . . . Salvage Created 535 | 230 276 29 Parts 42 | 22 16 4 Haulers Intercepted . | . . . Recyclers Shooed 1 | . . 1 Parts Field Recycled . | . . . Retrieved Matter . | . . . Parts Self-Destructed . | . . . Prevented . | . . . Parts Restored . | . . . Kills | -11 -10 -9 ------- Run | Yrd Mat Mat Combat Hostiles Destroyed 5 | . 5 . Guns 5 | . 5 . Classes Destroyed 5 | 3 2 . Worker 2 | 2 . . Tunneler 5 | 5 . . Recycler 2 | 1 1 . Watcher 2 | . 1 1 Grunt 5 | . 5 . Best Kill Streak 4 | 4 4 1 Combat Bots Only 3 | . 3 . Max Kills in Single Turn 1 | 1 1 1 Gunslinging . | . . . Exploded . | . . . Melee . | . . . Uniques/NPCs Destroyed . | . . . Combat | -11 -10 -9 -------- Run | Yrd Mat Mat Hostile Shots Fired 197 | . 49 148 Missed 77 | . 18 59 Hits 120 | . 31 89 Melee 1 | . . 1 Projectile 119 | . 31 88 Damage Taken 1520 | . 346 1174 Core 508 | . 103 405 Absorbed by Shields . | . . . Core Remaining (%) 79 | 100 58 . Volleys Fired 54 | 14 32 8 Largest 2 | 2 2 2 Hottest 70 | 70 70 60 Shots Fired 103 | 28 64 11 Gun 103 | 28 64 11 Cannon . | . . . Launcher . | . . . Special . | . . . Kinetic 54 | 14 32 8 Thermal 49 | 14 32 3 Explosive . | . . . Electromagnetic . | . . . Robot Hit Streak 11 | 6 11 6 Robot Miss Streak 4 | 4 3 1 Penetration Max . | . . . Secondary Targets . | . . . Shots Hit Robots 64 | 11 44 9 Core Hits 27 | 9 15 3 Critical Kills . | . . . Critical Parts Destroyed . | . . . Critical Strikes 4 | 2 2 . Burn 4 | 2 2 . Melee Attacks . | . . . Impact . | . . . Slashing . | . . . Piercing . | . . . Sneak Attacks . | . . . Combat Hostiles . | . . . Follow-up Attacks . | . . . Damage Inflicted 708 | 153 455 100 Guns 695 | 153 455 87 Cannons . | . . . Explosions . | . . . Melee . | . . . Ramming 13 | . . 13 Kinetic 280 | 39 188 53 Thermal 415 | 114 267 34 Explosive . | . . . Electromagnetic . | . . . Impact . | . . . Slashing . | . . . Piercing . | . . . Highest Corruption 2 | . 2 . Average Corruption 2 | . 2 . Corruption Purged . | . . . Corruption Blocked . | . . . Effects 1 | . 1 . Message Errors 1 | . 1 . Overload Shots . | . . . Overflow Damage . | . . . Projectiles . | . . . Explosions . | . . . Melee . | . . . Knockbacks . | . . . Impact . | . . . Kinetic . | . . . Secondary . | . . . Self-Inflicted Damage 6 | . . 6 Shots . | . . . Rammed 2 | . . 2 Targets Rammed 2 | . . 2 Kicked . | . . . Crushed . | . . . Highest Temperature 120 | 90 120 28 Average Temperature 37 | 30 42 15 Received Heat Transfer 516 | . 186 330 Siege Activations . | . . . Martial Activations . | . . . Shielding Activations . | . . . Robots Disrupted . | . . . Combat Hostiles . | . . . Robots Corrupted . | . . . Combat Hostiles . | . . . Parts Fried . | . . . Impact Corruptions . | . . . Robots Melted . | . . . Combat Hostiles . | . . . Parts Melted 4 | 4 . . Heat Transferred 1482 | 481 926 75 Parts Sabotaged . | . . . Parts Stolen . | . . . Parts Stripped . | . . . Power Chain Reactions . | . . . Alert | -11 -10 -9 ------- Run | Yrd Mat Mat Maximum Alert Level . | . . . Low Security (%) 100 | 100 100 100 Level 1 . | . . . Level 2 . | . . . Level 3 . | . . . Level 4 . | . . . Level 5 . | . . . High Security . | . . . Max Security . | . . . Peak Influence 80 | 10 80 30 Initial 11 | . . 11 Average 11 | 2 24 2 Influence Increases 254 | 40 162 52 Destroy 0b10 Robot/C 100 | . 100 . Destroy 0b10 Robot/NC 55 | 40 10 5 Destroy Leader 24 | . 22 2 Lose Combat Pursuer 75 | . 30 45 Influence Decreases 254 | 40 133 81 Entered New Map 18 | . . 18 Time Decay 191 | 40 113 38 Lost Part 45 | . 20 25 Squads Dispatched 4 | . 2 2 Investigation 2 | . 1 1 Extermination . | . . . Reinforcement 2 | . 1 1 Assault . | . . . Garrison . | . . . Intercept . | . . . Searches Triggered . | . . . Construction Impeded . | . . . Haulers Reinforced . | . . . Active Scanning Responses . | . . . Cargo Convoy Interrupts . | . . . Stealth | -11 -10 -9 --------- Run | Yrd Mat Mat Distress Signals 3 | . 2 1 Communications Jammed . | . . . Distress Signals . | . . . Times Spotted 33 | . 13 20 Peak Tracking Total 17 | . 4 17 Tactical Retreats 4 | . 2 2 ECM-based Alert Blocks 2 | . 2 . Traps | -11 -10 -9 ------- Run | Yrd Mat Mat Traps Triggered 2 | . 1 1 Indirectly . | . . . Trap Hack Attempts . | . . . Triggered . | . . . Disarmed . | . . . Reprogrammed . | . . . Reused . | . . . Traps Extracted . | . . . Installed . | . . . Triggered . | . . . Machines | -11 -10 -9 ---------- Run | Yrd Mat Mat Machines Disabled . | . . . Max in Single Turn . | . . . Machines Repaired . | . . . Machines Dismantled . | . . . Machines Sabotaged . | . . . Overloaded Fab Kills . | . . . Hacking | -11 -10 -9 --------- Run | Yrd Mat Mat Machines Accessed 3 | . 3 . Terminals 2 | . 2 . Fabricators . | . . . Repair Stations . | . . . Recycling Units 1 | . 1 . Scanalyzers . | . . . Garrison Access . | . . . Total Hacks 9 | . 9 . Successful 3 | . 3 . Failed 6 | . 6 . Catastrophic . | . . . Database Lockouts . | . . . Manual . | . . . Terminals 4 | . 4 . Fabricators . | . . . Repair Stations . | . . . Recycling Units 5 | . 5 . Scanalyzers . | . . . Garrison Access . | . . . Terminal Hacks . | . . . Fabricator Hacks . | . . . Repair Station Hacks . | . . . Recycling Unit Hacks 3 | . 3 . Report Inventory 2 | . 2 . Retrieve Components 1 | . 1 . Scanalyzer . | . . . Garrison Access Hacks . | . . . Unauthorized Hacks . | . . . Terminals . | . . . Fabricators . | . . . Repair Stations . | . . . Recycling Units . | . . . Scanalyzers . | . . . Garrison Access . | . . . Data Cores Recovered . | . . . Used . | . . . Hacking Detections 2 | . 2 . Full Trace Events 1 | . 1 . Feedback Events . | . . . Feedback Blocked . | . . . Robot Schematics Acquired . | . . . Robots Built . | . . . Authchips . | . . . Time . | . . . Total Robot Build Rating . | . . . Part Schematics Acquired . | . . . Parts Built . | . . . Authchips . | . . . Time . | . . . Total Part Build Rating . | . . . Part Studies Acquired . | . . . Parts Repaired . | . . . Time . | . . . Parts Recycled . | . . . Recycled Matter . | . . . Retrieved Matter . | . . . Retrieved Components 6 | . 6 . Parts Scanalyzed . | . . . Part Schematics Acquired . | . . . Parts Damaged . | . . . Bothacking | -11 -10 -9 ------------ Run | Yrd Mat Mat Used RIF Installer . | . . . Robots Hacked . | . . . Non-combat . | . . . Combat . | . . . Robot Hacks Applied . | . . . Relay Couplers Released . | . . . Fabnet Peak Effective % . | . . . Robots Rewired . | . . . Allies Hacked . | . . . Hacks Repelled . | . . . Allies | -11 -10 -9 -------- Run | Yrd Mat Mat Total Allies . | . . . Largest Group . | . . . Highest-Rated Group . | . . . Highest-Rated Ally . | . . . Total Orders . | . . . Ally Attacks . | . . . Total Damage . | . . . Kills . | . . . Allies Corrupted . | . . . Allies Melted . | . . . Intel | -11 -10 -9 ------- Run | Yrd Mat Mat Active Infowar (turns) 791 | 171 368 252 Optics 188 | . . 188 Terrain 559 | 171 325 63 ECM 106 | . 43 63 Robot Analysis Total . | . . . Derelict Logs Recovered . | . . . Drone Launches . | . . . Drone Recoveries . | . . . Exploration | -11 -10 -9 ------------- Run | Yrd Mat Mat Turns Passed 1004 | 197 423 384 Spaces Moved 734 | 80 363 291 Core 32 | . . 32 Treads . | . . . Legs 9 | 9 . . Wheels 588 | 71 363 154 Hover 105 | . . 105 Flight . | . . . Fastest Speed 50 | 80 80 50 Average Speed 92 | 84 82 107 Slowest Speed 350 | 120 100 350 Overloaded Moves . | . . . Propulsion Burnouts . | . . . Robots Hopped . | . . . Potential Cave-ins . | . . . Cave-ins Triggered . | . . . Exploration Rate (%) 27 | 4 48 30 Regions Visited 2 Branch Regions . Pre-discovered Areas . | . . . Known Exits Taken . | . . . Unknown Exits Taken 2 | 1 1 . Scrap Searched . | . . . Spaces Dug . | . . . Terrain Destroyed . | . . . Melee . | . . . Projectile . | . . . AOE . | . . . Terrain Rammed . | . . . Walls Destroyed . | . . . Machines Disabled . | . . . Actions | -11 -10 -9 --------- Run | Yrd Mat Mat Total 964 | 182 431 351 Wait 111 | 75 11 25 Move 732 | 79 362 291 Hop . | . . . Pick Up 15 | 2 9 4 Fast Attach 8 | 1 1 6 Attach 10 | . 1 9 Detach . | . . . Swap 15 | 7 5 3 Drop 17 | 4 10 3 Fire 54 | 14 32 8 Melee . | . . . Ram 2 | . . 2 Kick . | . . . Crush . | . . . Escape Stasis . | . . . Rewire . | . . . Trap . | . . . Miscellaneous . | . . . Route ------- -11/Scrapyard -10/Materials -9/Materials History --------- Turn | Location | Event 1 | -11/Scrapyard | Discovered new exit (range 3) 198 | -11/Scrapyard | Entered Materials 309 | -10/Materials | Build established: Scavenger-Mutant 607 | -10/Materials | Discovered new exit (range 13) 621 | -10/Materials | Entered another Materials area 621 | -9/Materials | Evolved 2 slots: Utility x2 742 | -9/Materials | Lost 4 parts (1n1u2w) 895 | -9/Materials | Lost 3 parts (1p2n) 928 | -9/Materials | Core integrity fell below 50% 971 | -9/Materials | Lost 6 parts (4n1u1w) 987 | -9/Materials | Build established: Mutant 998 | -9/Materials | Core integrity fell below 20% 1005 | -9/Materials | Destroyed by L-31 Rogue with Katana Last Messages --------------- 00928_ ALERT: Alarm triggered, dispatching investigation squad. 00929_ Hover Unit destroyed. 00940_ R-06 Scavenger collects Med. Storage Unit. 00940_ Slammed into U-05 Engineer. 00940_ ECM Suite broken. 00940_ Destabilizing: Short circuit. 00940_ ECM Suite destroyed. 00954_ W-16 Scout sends out distress signal. 00964_ Acquired Adv. Weight Redist. System. 00986_ Hover Unit destroyed. 00987_ C-30 ARC bursts open, deploying its payload. 00987_ L-31 Rogue unfolds itself. 00987_ G-34 Mercenary unfolds itself. 00995_ Imp. Ion Engine destroyed. 01000_ ALERT: Hostiles spotted, dispatching reinforcements to Terminal M011. 01004_ Broken ECM Suite destroyed. Map ----- +----------------------------------------------------+ | ?????????????????????????????????????????????????? | | ?????????????????????????????????????????????????? | | ?????????????????????????????????????????????????? | | ?????????????????????????????????????????????????? | | ?????????????????????????????????????????????????? | | ?????????????????????????????????????????????????? | | ?????????????????????????????????????????????????? | | ?????????????????????????????????????????????????? | | ?????????????????????????????????????????????????? | | ?????????????????????????????????????????????????? | | ?????????????????????????????????????????????????? | | ?????????????????????????????????????????????????? | | ?????????????????????????????????????????????????? | | ?????????????????????????????????????????????????? | | ?????????????????????????????????????????????????? | | ?????????????????????????????????????????????????? | | ?????????????????????????????#???????????????????? | | ???????????????????????????? #???????????????????? | | ???????????????????????????? #???????????????????? | | ???????????????????????????? #???????????????????? | | ???????????????????????????? #???????????????????? | | ???????????????###+###?????? #???????????????????? | | ???????????????# ####### #????????? #????????? | | ???????????????# k##### #????????? | | ???????????????+^ Y ; ????????????? | | ???????????????# @ #???????????????????? | | ???????????????# s l #???????????????????? | | ???????????#+??### ss ###?????????????????? | | ???????????# ##### ?????????????? | | ???????????# s g g ????????????? | | ???????????# % ????????????? | | ???????????# """" g"""" """" """" ???????????? | | ???????????+ """" """" """" """"????????????? | | ???????????## """" """" """" """?????????????? | | ????????????# g ?????????????? | | ????????????# ?????????????? | | ????????????# #########+#######?????????? | | ????????????# #??? #?????????? | | ????????????+ #???? #?????????? | | ????????????# #???? """ """ ########### | | ????????????####+### #?????"""""""" + | | ??????????????? ?# #?# """"" " ########### | | ??????????????? ?# #?# #?????????? | | ?????????????? # ############/#####????????? | | ?????????????? # +????????? | | ?????????????# # ####????????? | | ?????????????# # #???????????? | | ?????????????####### ### #+####???????????? | | ???????????????????# #?# #????????????????? | | ???????????????????# #?# ]][[#????????????????? | +----------------------------------------------------+ Best States ------------- Heat Dissipation 28 Energy Generation 12 Energy Capacity 265 Matter Stores 300 Matter Capacity 300 Sight Range 18 Terrain Scan Range 16 Terrain Scan Density 10 ECM Strength 2 Additional Mass Support 9 Evasion (%) 55 Item Schematics ----------------- None Robot Schematics ------------------ None Fabricated ------------ Nothing Repaired ---------- Nothing Studied --------- None Alien Tech Used ----------------- None Achievements -------------- None Challenges ------------ None Game ------ Seed DisruptionGravjetLattice Manual? 0 Play Time 00:13:53 Cumulative 113.2 hours Start 2026.07.08 @ 20:14:26 End 2026.07.08 @ 20:28:27 Sessions 1 Manual Loads 0 Difficulty Rogue Special Mode None Game No. 197 Rogue 151 Adventurer 45 Explorer 1 Win Type - Total 0 Types 0/0/0/0/0/0/0/0/0/0 Lore% 27 Gallery% 40 Achievement% 23 Wizard Run 0 Options --------- Layout 1 ASCII 0 Keyboard 0 Movement Mouse Keybinds 0 Fullscreen 1 Font 32/SmallcapsGlow Map View 50x40 Zoom Use 0% Tactical HUD 1 Map Filters NONE Filters LOW_CONTRAST(13,24,33)|BRIGHTNESS(90)|SATURATION(87) Steam 1 RUN: f0785686-d318-499e-a84e-5d92fe6ebf31